bitfinex/quotes_ETHUSD_20250804
["timestamp","ask_amount","ask_price","bid_price","bid_amount"]
[1754272946204,56.05808885,3542.4,3541.9,0.002]
[1754272946205,32.247,3542.0,3541.9,0.002]
[1754272946359,56.03540885,3542.0,3541.9,0.002]
[1754272946554,58.85867254,3542.0,3541.9,0.002]
[1754272946782,59.76707254,3542.0,3541.9,0.002]
[1754272947800,61.05010558,3542.0,3541.9,0.002]
[1754272948000,63.26774133,3542.0,3541.9,0.002]
[1754272949859,60.30367764,3542.0,3541.9,0.002]
[1754272950163,60.44447764,3542.0,3541.9,0.002]
[1754272950362,63.26774133,3542.0,3541.9,0.002]
[1754272950579,60.44447764,3542.0,3541.9,0.002]
[1754272951267,36.50066879,3542.0,3541.9,0.002]
[1754272951472,36.50066879,3542.0,3541.9,0.4525]
[1754272951473,40.99746879,3542.0,3541.9,0.4525]
[1754272952254,57.83907764,3542.0,3541.9,0.4525]
[1754272952594,57.83907764,3542.0,3541.9,0.002]
[1754272953495,58.28067764,3542.0,3541.9,0.002]
[1754272953657,58.76397764,3542.0,3541.9,0.002]
[1754272954263,61.58724133,3542.0,3541.9,0.002]
[1754272954863,49.84160885,3541.4,3541.3,0.002]
[1754272955063,54.33840885,3541.4,3541.3,0.002]
[1754272955288,55.26330885,3541.4,3541.3,0.002]
[1754272955563,54.33840885,3541.4,3541.3,0.002]
[1754272955758,54.33840885,3541.4,3541.3,0.4525]
[1754272955959,8.0478,3541.4,3541.3,0.4525]
[1754272956960,5.0478,3541.4,3541.3,0.4525]
[1754272957162,35.0478,3541.4,3541.3,0.4525]
[1754272957438,38.0478,3541.4,3541.3,0.002]
[1754272957996,38.9727,3541.4,3541.3,0.002]
[1754272958293,41.84094707,3541.4,3541.3,0.002]
[1754272958491,43.06694086,3541.4,3541.3,0.002]
[1754272958693,67.97094035,3541.4,3541.3,0.002]
[1754272959770,0.55,3541.0,3540.2,0.4505]
[1754272960082,3.55,3540.4,3540.2,0.4505]
[1754272960284,10.55,3540.2,3539.7,0.1471]
[1754272960598,4.357,3540.1,3539.7,0.1471]
[1754272960803,0.55,3540.0,3538.7,3.0]
[1754272960990,6.788,3540.9,3539.8,0.1471]
[1754272960991,4.907,3539.9,3539.8,0.1471]
[1754272961897,4.907,3539.9,3539.8,0.5976]
[1754272962627,4.907,3539.9,3539.8,0.4505]
[1754272965893,4.902,3539.9,3539.8,0.4505]
[1754272966490,0.55,3539.9,3539.8,0.4505]
[1754272966698,4.903,3539.9,3539.8,0.4505]
[1754272967082,4.903,3539.9,3539.4,0.4505]
[1754272967083,0.55,3539.8,3539.4,0.4505]
[1754272967287,0.55,3539.6,3539.5,0.4505]
[1754272967599,4.902,3539.6,3539.1,0.1471]
[1754272967917,4.902,3539.6,3538.8,3.69092056]
[1754272968114,4.902,3539.6,3539.2,0.1471]
[1754272968514,4.902,3539.6,3539.3,0.4505]
[1754272969249,0.55,3539.4,3538.9,0.4505]
[1754272969381,0.55,3539.2,3539.0,0.4505]
[1754272969581,4.354,3539.1,3539.0,0.4505]
[1754272969818,4.4956,3539.1,3539.0,0.4505]
[1754272970916,5.0456,3539.1,3539.0,0.4505]
[1754272972109,0.1416,3539.1,3539.0,3.42325696]
[1754272972309,0.1416,3539.1,3539.0,1.07540079]
[1754272972310,4.5096,3539.1,3539.0,1.07540079]
[1754272972525,4.368,3539.1,3539.0,0.4505]
[1754272973189,4.368,3539.1,3539.0,3.27615696]
[1754272973416,4.368,3539.1,3539.0,0.4505]
[1754272973721,4.918,3539.1,3539.0,0.4505]
[1754272975723,0.55,3539.1,3539.0,0.4505]
[1754272975903,4.37,3539.1,3539.0,0.4505]
[1754272976933,4.37,3539.1,3539.0,0.5976]
[1754272977227,4.368,3539.1,3539.0,0.7392]
[1754272977391,4.368,3539.1,3539.0,1.58853]
[1754272977594,4.368,3539.1,3539.0,4.41418696]
[1754272977825,4.368,3539.1,3539.0,4.57303996]
[1754272977994,4.368,3539.1,3539.0,1.44143]
[1754272978493,4.368,3539.1,3539.0,3.56485696]
[1754272978694,4.368,3539.1,3539.0,3.42325696]
[1754272979005,0.1416,3539.4,3539.3,2.82541745]
[1754272979208,4.368,3539.5,3539.4,2.82533762]
[1754272979411,4.368,3539.5,3539.4,3.42593762]
[1754272979596,1.10948485,3540.4,3539.8,2.8249478]
[1754272979796,0.1416,3540.2,3539.9,0.4535]
[1754272980125,0.1416,3540.2,3540.0,0.4535]
[1754272980326,4.376,3540.1,3540.0,0.4535]
[1754272981325,0.1416,3540.2,3540.0,0.4535]
[1754272981531,4.375,3540.1,3540.0,2.82480491]
[1754272981731,4.375,3540.1,3539.9,2.96651893]
[1754272981901,4.375,3540.1,3540.0,2.82485875]
[1754272982101,4.375,3540.1,3540.0,3.27835875]
[1754272982441,4.375,3540.2,3540.1,2.82477896]
[1754272982604,1.10948485,3540.4,3540.3,2.82461938]
[1754272982797,1.10948485,3540.4,3540.3,3.27811938]
[1754272982996,1.10948485,3540.4,3540.3,3.41971938]
[1754272983593,1.10948485,3540.4,3540.3,3.56681938]
[1754272984408,1.10948485,3540.4,3540.3,0.5951]
[1754272986636,1.10948485,3540.4,3540.3,3.41971938]
[1754272986813,1.10948485,3540.4,3540.3,3.77640132]
[1754272987345,1.10948485,3540.4,3540.3,3.78190132]
[1754272987642,1.10948485,3540.4,3540.3,3.92350132]
[1754272987849,1.10948485,3540.4,3540.3,6.92350132]
[1754272988004,1.10948485,3540.4,3540.3,3.95178194]
[1754272988201,1.10948485,3540.4,3540.3,3.41971938]
[1754272988406,1.10948485,3540.4,3540.3,3.56681938]
[1754272989409,1.10948485,3540.4,3540.3,0.1416]
[1754272990040,1.10948485,3540.4,3540.3,3.41971938]
[1754272990758,1.10948485,3540.4,3540.3,0.5951]
[1754272990964,1.10948485,3540.4,3540.3,1.44418]
[1754272991653,1.10948485,3540.4,3540.3,4.26879938]
[1754272991822,1.10948485,3540.4,3540.3,1.44418]
[1754272992483,1.10948485,3540.4,3540.3,0.99068]
[1754272992617,2.05368485,3540.4,3539.8,2.82499716]
[1754272992814,2.05368485,3540.4,3540.1,0.990733]
[1754272993010,0.9442,3540.3,3540.1,0.990733]
[1754272993343,1.10948485,3540.4,3539.9,0.1416]
[1754272993545,1.10948485,3540.4,3540.0,3.27828879]
[1754272993710,1.57738485,3540.4,3540.3,0.1416]
[1754272994040,0.9442,3540.3,3540.1,0.1416]
[1754272994350,0.4679,3540.3,3540.1,0.1416]
[1754272994550,0.4679,3540.3,3539.0,2.8276278]
[1754272994551,1.24353849,3540.2,3539.7,0.1416]
[1754272994753,0.9442,3540.1,3539.7,0.1416]
[1754272995106,0.4763,3540.1,3539.7,0.1416]
[1754272995332,0.4679,3540.0,3539.7,0.1416]
[1754272995934,0.1416,3540.2,3539.8,0.4535]
[1754272996132,0.1416,3540.2,3540.0,2.82485321]
[1754272996440,0.1416,3540.2,3540.1,3.27827896]
[1754272996830,5.48848485,3540.4,3540.3,2.82461938]
[1754272997244,5.48848485,3540.4,3540.3,0.5951]
[1754272997432,5.48848485,3540.4,3540.3,0.1416]
[1754272997631,5.95638485,3540.4,3539.7,2.82509817]
[1754272997833,5.95638485,3540.4,3540.1,0.1416]
[1754272999327,0.4679,3540.3,3540.1,0.1416]
[1754272999524,0.4679,3540.3,3540.1,2.96637674]
[1754272999728,5.48848485,3540.4,3540.1,0.1416]
[1754272999933,5.48848485,3540.4,3540.1,2.96635762]
[1754273000133,5.95638485,3540.4,3540.1,0.1416]
[1754273000539,0.4679,3540.3,3540.1,0.1416]
[1754273000740,5.48848485,3540.4,3540.1,0.1416]
[1754273000741,0.9442,3540.2,3540.1,0.1416]
[1754273000922,1.0858,3540.2,3539.8,7.04]
[1754273001245,0.9442,3540.1,3539.8,7.04]
[1754273001456,0.4679,3540.0,3539.8,7.04]
[1754273002154,0.1416,3540.2,3539.8,9.86494655]
[1754273002571,0.6095,3540.2,3539.8,9.86494655]
[1754273002794,0.6095,3540.2,3539.8,8.37079793]
[1754273002795,0.1416,3540.2,3539.8,8.37079793]
[1754273003010,4.377,3540.2,3540.1,0.1416]
[1754273003149,4.377,3540.2,3540.1,2.96637896]
[1754273003341,4.377,3540.2,3540.1,0.5951]
[1754273003784,4.377,3540.2,3540.1,0.1416]
[1754273004080,4.8449,3540.2,3540.1,0.1416]
[1754273004880,4.377,3540.2,3540.1,0.5951]
[1754273005092,4.377,3540.2,3540.1,0.1416]
[1754273006762,5.3212,3540.2,3539.9,0.849143]
[1754273007084,0.9442,3540.1,3539.8,7.1816]
[1754273007452,0.4679,3540.1,3539.8,7.1816]
[1754273008258,4.377,3540.2,3539.8,10.00658941]
[1754273008495,4.377,3540.2,3539.9,3.2784145]
[1754273008869,4.377,3540.2,3539.9,0.4535]
[1754273009371,4.377,3540.2,3539.9,2.82492717]
[1754273009703,4.377,3540.2,3540.0,0.4947]
[1754273010884,4.377,3540.2,3540.1,3.31947896]
[1754273011088,4.377,3540.2,3540.1,3.46107896]
[1754273012213,4.377,3540.2,3540.1,0.6363]
[1754273012621,4.377,3540.2,3540.1,0.1416]
[1754273012622,4.8399,3540.2,3540.1,0.1416]
[1754273013036,5.3328,3540.2,3540.1,0.1416]
[1754273013321,0.4629,3540.2,3540.1,0.1416]
[1754273013674,0.4629,3540.2,3539.8,7.04]
[1754273014018,0.4929,3540.1,3539.8,7.1816]
[1754273014319,4.8289,3540.0,3539.9,0.849152]
[1754273014472,4.8289,3540.0,3539.8,7.1816]
[1754273014473,5.3218,3540.0,3539.8,7.1816]
[1754273014673,4.366,3540.0,3539.8,7.1816]
[1754273014884,0.9558,3539.9,3539.8,8.030823]
[1754273015283,0.9558,3539.9,3539.8,7.04]
[1754273015482,1.48798,3539.9,3539.5,0.849316]
[1754273015686,1.0974,3539.8,3539.5,0.849316]
[1754273015889,4.366,3539.7,3539.4,0.002]
[1754273016089,5.3218,3539.7,3539.4,0.851316]
[1754273016288,0.9558,3539.6,3539.4,0.851316]
[1754273016510,0.4629,3539.5,3539.4,0.851316]
[1754273016684,0.9558,3539.5,3539.4,0.002]
[1754273017277,2.19374,3539.5,3539.4,0.002]
[1754273018843,4.91234,3539.5,3539.4,0.002]
[1754273019050,4.366,3539.5,3539.4,0.002]
[1754273019558,4.366,3539.5,3539.4,0.4967]
[1754273019925,4.366,3539.5,3539.4,0.002]
[1754273020160,4.8289,3539.5,3539.4,0.002]
[1754273020355,0.4629,3539.5,3539.4,0.002]
[1754273020564,5.8728,3539.5,3539.4,0.002]
[1754273020761,6.47424,3539.5,3539.4,0.002]
[1754273021436,5.43134,3539.5,3539.4,0.002]
[1754273021641,0.1416,3539.6,3539.4,0.002]
[1754273021870,4.368,3539.5,3539.4,0.002]
[1754273022257,4.8309,3539.5,3539.4,0.002]
[1754273022770,5.3238,3539.5,3539.4,0.002]
[1754273023847,4.37,3539.5,3539.4,0.4967]
[1754273025121,4.8329,3539.5,3539.4,0.002]
[1754273025581,5.82325,3539.5,3539.4,0.002]
[1754273025873,5.96485,3539.5,3539.4,0.002]
[1754273026960,5.4674,3539.5,3539.4,0.002]
[1754273027273,6.0174,3539.5,3539.4,0.002]
[1754273028188,4.37,3539.5,3539.4,0.4967]
[1754273028851,4.37,3539.5,3539.4,0.002]
[1754273029976,4.8329,3539.5,3539.4,0.002]
[1754273030284,6.56414,3539.5,3539.4,0.002]
[1754273032252,5.5245,3539.5,3539.4,0.002]
[1754273032781,5.0616,3539.5,3539.4,0.002]
[1754273033283,5.5245,3539.5,3539.4,0.002]
[1754273033460,4.37,3539.5,3539.4,0.002]
[1754273034279,5.3258,3539.5,3539.4,0.002]
[1754273034786,5.37964,3539.5,3539.4,0.002]
[1754273034963,5.87254,3539.5,3539.4,0.002]
[1754273036076,6.42254,3539.5,3539.4,0.002]
[1754273040785,9.42254,3539.5,3539.4,0.002]
[1754273049587,8.92964,3539.5,3539.4,0.002]
[1754273050502,8.46674,3539.5,3539.4,0.002]
[1754273051283,8.94114,3539.5,3539.4,0.002]
[1754273051485,0.55,3539.5,3539.4,0.002]
[1754273051708,4.909,3539.5,3539.4,0.4562]
[1754273051871,7.909,3539.5,3539.4,0.4562]
[1754273054110,3.55,3539.5,3539.4,0.4562]
[1754273054306,7.908,3539.5,3539.4,0.4562]
[1754273054689,8.3824,3539.5,3539.4,0.002]
[1754273055009,9.64826,3539.5,3539.4,0.002]
[1754273055809,9.18736,3539.5,3539.4,0.002]
[1754273058076,9.64826,3539.5,3539.4,0.002]
[1754273058992,9.18736,3539.5,3539.4,0.002]
[1754273060019,9.64826,3539.5,3539.4,0.002]
[1754273061018,4.82936,3539.5,3539.4,0.002]
[1754273061205,7.904,3539.5,3539.4,0.002]
[1754273061407,7.904,3539.5,3539.4,0.4562]
[1754273063420,7.908,3539.5,3539.4,0.4562]
[1754273063619,4.908,3539.5,3539.4,0.4562]
[1754273064489,0.55,3539.5,3539.4,0.4562]
[1754273064720,4.907,3539.5,3539.4,0.4562]
[1754273065131,6.79,3540.6,3539.4,0.6033]
[1754273065430,6.79,3540.6,3539.5,0.4542]
[1754273065431,4.357,3540.3,3539.5,0.4542]
[1754273066125,0.55,3540.2,3539.5,0.4542]
[1754273066292,3.0,3540.0,3539.4,0.002]
[1754273066501,0.55,3539.7,3539.4,0.002]
[1754273066708,0.55,3539.5,3539.4,0.4562]
[1754273066913,4.915,3539.5,3539.4,0.4562]
[1754273067423,4.365,3539.5,3539.4,0.4562]
[1754273068440,4.8015,3539.5,3539.4,0.002]
[1754273068605,4.8394,3539.5,3539.4,0.002]
[1754273069227,4.365,3539.5,3539.4,0.002]
[1754273071037,4.8238,3539.5,3539.4,0.002]
[1754273071242,5.98277,3539.5,3539.4,0.002]
[1754273071446,4.9654,3539.5,3539.4,0.002]
[1754273072005,5.5154,3539.5,3539.4,0.002]
[1754273073022,6.0043,3539.5,3539.4,0.002]
[1754273074040,9.0043,3539.5,3539.4,0.002]
[1754273074257,8.0566,3539.5,3539.4,0.002]
[1754273074866,8.0566,3539.5,3539.4,0.4951]
[1754273075364,8.5154,3539.5,3539.4,0.002]
[1754273075758,9.0043,3539.5,3539.4,0.002]
[1754273075962,8.5154,3539.5,3539.4,0.002]
[1754273076877,9.41583,3539.5,3539.4,0.002]
[1754273077169,9.90473,3539.5,3539.4,0.002]
[1754273077377,9.41583,3539.5,3539.4,0.002]
[1754273078446,8.95703,3539.5,3539.4,0.002]
[1754273079363,8.0566,3539.5,3539.4,0.002]
[1754273080243,8.5154,3539.5,3539.4,0.002]
[1754273081350,8.5054,3539.5,3539.4,0.002]
[1754273082775,8.0466,3539.5,3539.4,0.002]
[1754273082944,8.0466,3539.5,3539.4,0.4951]
[1754273083144,8.0456,3539.5,3539.4,0.4951]
[1754273084169,8.0456,3539.5,3539.4,0.002]
[1754273084371,8.5044,3539.5,3539.4,0.002]
[1754273085204,8.0456,3539.5,3539.4,0.4951]
[1754273085894,8.5044,3539.5,3539.4,0.002]
[1754273086192,9.84374,3539.5,3539.4,0.002]
[1754273087387,39.84374,3539.5,3539.4,0.002]
[1754273087583,3.55,3539.4,3539.0,0.002]
[1754273087785,39.84374,3539.5,3539.0,0.002]
[1754273087786,16.86095833,3539.1,3539.0,0.002]
[1754273088078,24.21395833,3539.1,3539.0,0.002]
[1754273088282,25.30325833,3539.1,3539.0,0.002]
[1754273088488,55.30325833,3539.1,3539.0,0.002]
[1754273089889,55.16165833,3539.1,3539.0,0.002]
[1754273090091,58.0299054,3539.1,3539.0,0.002]
[1754273090290,0.55,3539.0,3538.0,0.45628312]
[1754273090590,3.55,3538.8,3538.0,0.45628312]
[1754273090789,4.354,3538.7,3538.0,0.45628312]
[1754273090993,3.0,3538.6,3538.0,0.45628312]
[1754273091296,3.0,3538.6,3537.3,2.82698589]
[1754273091297,3.0,3538.4,3537.3,2.82698589]
[1754273091590,3.0,3538.2,3537.6,2.9758505]
[1754273091792,4.353,3538.1,3537.6,2.9758505]
[1754273092091,4.356,3538.0,3537.7,0.81435031]
[1754273092394,4.356,3538.0,3537.8,0.4931]
[1754273092591,4.356,3538.0,3537.9,3.46873551]
[1754273092761,4.356,3538.0,3537.9,0.6422]
[1754273092962,4.356,3538.0,3537.9,3.46873551]
[1754273093362,4.356,3538.0,3537.9,0.6422]
[1754273093659,4.356,3538.0,3537.9,0.7575643]
[1754273094075,4.356,3538.0,3537.9,4.24010225]
[1754273094378,4.356,3538.0,3537.9,4.24004622]
[1754273094560,4.356,3538.0,3537.9,3.97563795]
[1754273096107,4.356,3538.0,3537.9,1.14910244]
[1754273096475,4.355,3538.0,3537.9,1.14910244]
[1754273096800,4.354,3538.1,3537.9,3.97563795]
[1754273097103,4.354,3538.1,3538.0,1.5946638]
[1754273098079,4.354,3538.1,3538.0,2.4443028]
[1754273098524,4.354,3538.1,3538.0,5.27075842]
[1754273099106,4.354,3538.1,3538.0,5.41985842]
[1754273099966,4.354,3538.1,3538.0,5.27075842]
[1754273100416,4.354,3538.1,3538.0,5.41235842]
[1754273100802,4.354,3538.1,3538.0,5.56145842]
[1754273100997,4.353,3538.4,3538.1,2.82636377]
[1754273101391,4.353,3538.4,3538.2,0.4645]
[1754273101593,4.353,3538.4,3538.3,0.4645]
[1754273101985,4.353,3538.4,3538.0,4.91923396]
[1754273101986,4.353,3538.4,3538.0,2.0928028]
[1754273102307,4.8009,3538.4,3538.1,0.4645]
[1754273102809,4.353,3538.4,3538.1,0.4645]
[1754273103115,4.8009,3538.4,3538.1,0.4645]
[1754273103276,0.4479,3538.3,3538.1,0.4645]
[1754273103677,0.4479,3538.3,3538.0,0.991239]
[1754273104090,4.353,3538.4,3538.0,0.849639]
[1754273104091,0.9325,3538.2,3538.0,0.849639]
[1754273104298,0.4479,3538.2,3538.0,0.849639]
[1754273104503,0.1416,3538.3,3538.1,0.4645]
[1754273105306,4.353,3538.4,3538.1,0.42822469]
[1754273105504,4.353,3538.4,3538.2,0.4645]
[1754273105710,1.4825,3538.3,3537.8,0.849698]
[1754273106011,0.55,3538.1,3537.4,0.4645]
[1754273106202,0.55,3537.9,3537.4,0.4645]
[1754273106398,0.55,3537.9,3537.3,2.82696353]
[1754273106598,0.9979,3537.9,3537.5,0.4645]
[1754273107277,0.4479,3537.8,3537.5,0.4645]
[1754273107837,4.356,3538.0,3536.7,3.0]
[1754273107838,4.356,3538.0,3537.6,0.4645]
[1754273107990,4.356,3538.0,3537.4,2.82688313]
[1754273108323,4.356,3538.0,3537.7,0.4645]
[1754273108496,4.8039,3538.0,3537.7,0.4645]
[1754273108696,0.4479,3537.9,3537.7,0.4645]
[1754273109102,0.4479,3537.9,3537.5,1.0298978]
[1754273109284,0.4479,3537.9,3536.7,0.4645]
[1754273109285,0.4479,3537.8,3536.7,0.4645]
[1754273109490,5.2865,3537.7,3537.0,0.4645]
[1754273109690,4.88265,3537.6,3537.0,0.4645]
[1754273110026,4.88265,3537.6,3537.1,2.8271748]
[1754273110027,4.354,3537.6,3537.1,2.8271748]
[1754273110412,0.4846,3538.8,3537.2,0.49277094]
[1754273110608,3.0,3539.1,3537.2,0.49277094]
[1754273110609,0.4846,3538.5,3537.5,2.82682501]
[1754273110810,0.4846,3538.5,3537.3,0.1491]
[1754273110811,4.355,3538.4,3537.7,2.82669531]
[1754273111129,4.8029,3538.4,3537.8,0.4645]
[1754273111309,0.9325,3538.3,3537.8,0.4645]
[1754273111628,0.55,3538.1,3537.2,0.4665]
[1754273111817,0.55,3537.9,3537.2,0.002]
[1754273112418,0.9325,3537.8,3537.2,0.002]
[1754273113823,0.4479,3537.7,3537.2,2.82907957]
[1754273114029,4.356,3537.6,3537.2,0.002]
[1754273114330,4.8039,3537.6,3537.2,0.4665]
[1754273114622,4.356,3537.6,3537.3,0.4645]
[1754273114823,4.8039,3537.6,3537.3,0.4645]
[1754273114994,0.4479,3537.5,3537.2,0.002]
[1754273115547,4.356,3537.6,3537.2,0.002]
[1754273115747,4.356,3537.6,3537.3,0.4645]
[1754273116052,4.356,3537.6,3537.4,0.4645]
[1754273116938,4.356,3537.6,3537.2,2.97066851]
[1754273117248,4.356,3537.6,3537.5,0.4645]
[1754273119016,4.356,3537.6,3537.5,0.6061]
[1754273120127,4.356,3537.6,3537.5,3.43295512]
[1754273120646,4.354,3537.7,3537.5,3.43295512]
[1754273120833,4.354,3537.7,3537.5,3.43294691]
[1754273121219,0.4479,3538.0,3537.6,3.29127521]
[1754273121419,4.8019,3537.9,3537.6,0.4645]
[1754273121838,0.1416,3538.1,3537.5,0.1416]
[1754273122046,4.354,3538.0,3537.7,0.4645]
[1754273122452,4.354,3538.0,3537.8,0.4645]
[1754273122651,4.354,3538.0,3537.7,2.96823816]
[1754273122652,4.354,3538.0,3537.9,0.4645]
[1754273123073,4.354,3538.0,3537.7,3.43273816]
[1754273123266,4.354,3538.0,3537.7,0.6061]
[1754273123442,4.8019,3538.0,3537.7,0.6061]
[1754273123641,4.354,3538.0,3537.7,0.6061]
[1754273123885,0.4479,3537.9,3537.7,0.6061]
[1754273124568,0.4479,3537.9,3537.7,0.1416]
[1754273124881,0.4479,3537.8,3537.7,0.1416]
[1754273125175,0.9325,3537.8,3537.7,0.1416]
[1754273125878,0.4479,3537.8,3537.7,0.1416]
[1754273126584,4.354,3538.0,3537.7,0.1416]
[1754273126786,4.354,3538.0,3537.8,0.4645]
[1754273127009,4.354,3538.0,3537.8,3.29110709]
[1754273127506,4.35196458,3538.0,3537.8,4.00203]
[1754273127684,4.35196458,3538.0,3537.9,0.4645]
[1754273127858,4.354,3538.1,3537.9,3.43261629]
[1754273128053,4.354,3538.1,3537.9,3.81772029]
[1754273128254,4.354,3538.1,3538.0,1.12894046]
[1754273128488,4.354,3538.1,3538.0,3.95539608]
[1754273128689,1.19588228,3539.1,3538.0,3.95539608]
[1754273128690,0.4479,3539.0,3538.0,1.30630501]
[1754273128876,4.7983,3538.9,3538.0,0.66444046]
[1754273129084,0.9418,3538.8,3538.5,0.1416]
[1754273129589,4.354,3538.9,3538.5,0.1416]
[1754273129807,0.4443,3538.7,3538.5,0.1416]
[1754273129971,0.1416,3539.0,3538.8,0.1416]
[1754273129972,4.354,3539.0,3538.8,0.1416]
[1754273130175,4.7983,3539.0,3538.8,0.1416]
[1754273130561,0.9418,3538.9,3538.8,0.1416]
[1754273130759,0.9418,3538.9,3538.6,0.1416]
[1754273130991,4.354,3539.0,3538.6,0.1416]
[1754273131188,0.9418,3538.8,3538.6,0.1416]
[1754273131604,0.4443,3538.7,3538.6,0.1416]
[1754273132192,0.9418,3538.7,3538.2,2.82623931]
[1754273132494,0.9418,3538.7,3538.0,0.1416]
[1754273132495,0.1416,3538.5,3538.0,0.1416]
[1754273132690,0.1416,3538.3,3537.8,0.1416]
[1754273132927,4.353,3538.2,3537.8,0.1416]
[1754273133214,0.4443,3538.1,3537.8,0.1416]
[1754273133373,0.9418,3538.1,3537.8,0.1416]
[1754273133575,0.4975,3538.0,3537.8,0.1416]
[1754273133788,0.4975,3538.0,3537.7,0.1416]
[1754273133961,0.9418,3538.0,3537.7,0.1416]
[1754273134162,0.4443,3538.0,3537.7,0.1416]
[1754273134362,0.9418,3537.9,3537.7,0.1416]
[1754273134888,0.4443,3537.8,3537.7,0.1416]
[1754273135791,0.4443,3538.1,3537.7,0.1416]
[1754273136003,0.4443,3538.0,3537.7,0.1416]
[1754273136309,4.353,3538.2,3537.8,0.4525]
[1754273136616,4.353,3538.2,3537.9,0.4525]
[1754273136994,4.353,3538.2,3537.9,0.4695258]
[1754273137166,4.353,3538.2,3538.0,3.27893555]
[1754273137362,0.1416,3538.5,3538.0,2.82643555]
[1754273137586,0.1416,3538.5,3537.9,0.1416]
[1754273137587,4.7983,3538.4,3538.1,0.4525]
[1754273137799,4.7983,3538.4,3537.9,0.1416]
[1754273137800,0.4443,3538.3,3537.9,0.1416]
[1754273138092,0.4443,3538.2,3537.9,0.5941]
[1754273138299,0.4443,3538.1,3537.9,0.1416]
[1754273138894,0.4443,3538.0,3537.9,0.1416]
[1754273139465,0.4443,3538.3,3537.9,0.1416]
[1754273139665,0.4443,3538.2,3537.9,0.1416]
[1754273140668,0.4443,3538.1,3537.9,0.1416]
[1754273141265,0.4443,3538.1,3537.9,2.96812802]
[1754273141512,0.4443,3538.1,3537.9,0.5941]
[1754273141700,4.354,3538.4,3538.0,0.4525]
[1754273142002,4.354,3538.4,3537.9,3.39516307]
[1754273142003,4.353,3538.3,3538.1,0.4525]
[1754273142183,4.353,3538.3,3537.7,3.27914155]
[1754273142184,5.2948,3538.3,3537.7,3.27914155]
[1754273142365,4.8505,3538.3,3537.7,0.61059239]
[1754273142566,0.55,3538.1,3537.8,0.849638]
[1754273142803,0.9418,3538.0,3537.2,0.002]
[1754273143101,0.9418,3538.0,3537.3,0.1416]
[1754273143102,0.1416,3537.8,3537.3,0.1416]
[1754273143303,0.1416,3537.8,3537.2,0.002]
[1754273143470,0.9418,3537.7,3537.2,0.1436]
[1754273143670,0.4443,3537.6,3537.2,0.1436]
[1754273143999,4.353,3537.5,3537.2,0.002]
[1754273144702,0.9418,3537.4,3537.2,0.002]
[1754273145207,0.9418,3537.3,3537.2,0.002]
[1754273147132,1.0834,3537.3,3537.2,0.002]
[1754273147423,2.16288,3537.3,3537.2,0.002]
[1754273147623,1.6334,3537.3,3537.2,0.002]
[1754273148846,1.0834,3537.3,3537.2,0.002]
[1754273149142,4.8013,3537.3,3537.2,0.002]
[1754273149291,5.2988,3537.3,3537.2,0.002]
[1754273150094,4.356,3537.3,3537.2,0.002]
[1754273150293,4.356,3537.3,3537.2,0.4545]
[1754273150737,3.0,3538.0,3537.2,0.4545]
[1754273150738,0.4443,3538.1,3537.5,2.82683829]
[1754273150895,0.4443,3538.1,3537.2,0.93842781]
[1754273150896,4.356,3538.0,3537.6,0.1416]
[1754273151294,0.4443,3537.9,3537.6,0.1416]
[1754273151628,0.4443,3537.9,3537.6,0.5941]
[1754273151827,0.1416,3538.1,3537.7,3.27915152]
[1754273152003,4.357,3538.0,3537.6,0.62479478]
[1754273152207,4.357,3538.0,3537.8,0.5941]
[1754273152914,0.6391,3538.3,3537.8,0.5941]
[1754273152915,0.1416,3538.3,3537.8,0.1416]
[1754273153130,0.1416,3538.3,3537.9,0.4525]
[1754273153131,4.356,3538.0,3537.9,0.4525]
[1754273153852,4.356,3538.0,3537.9,0.5941]
[1754273154012,4.356,3538.0,3537.9,3.76270627]
[1754273154412,4.357,3538.0,3537.9,3.76270627]
[1754273155043,0.001,3538.0,3537.9,3.94007162]
[1754273155363,0.001,3538.0,3537.9,3.91180627]
[1754273157022,0.001,3538.0,3537.9,3.94007162]
[1754273157224,0.001,3538.0,3537.9,3.91180627]
[1754273157620,0.001,3538.0,3537.9,6.94007162]
[1754273157811,0.001,3538.0,3537.9,6.91180627]
[1754273159629,0.001,3538.0,3537.9,11.26580627]
[1754273160014,0.001,3538.0,3537.9,11.11670627]
[1754273160214,0.001,3538.0,3537.9,18.30580627]
[1754273161767,0.001,3538.0,3537.9,18.15570627]
[1754273162546,0.001,3538.0,3537.9,13.95180627]
[1754273162752,0.001,3538.0,3537.9,13.80270627]
[1754273162945,0.001,3538.0,3537.9,18.15570627]
[1754273163358,0.001,3538.0,3537.9,17.70320627]
[1754273163660,0.001,3538.0,3537.9,18.19600627]
[1754273164227,0.9395,3538.0,3537.9,10.00813551]
[1754273166162,0.4413,3538.0,3537.9,2.96813551]
[1754273168685,0.9395,3538.0,3537.9,2.96813551]
[1754273169064,0.9395,3538.0,3537.9,0.1416]
[1754273169270,0.9395,3538.0,3537.9,2.96813551]
[1754273169672,0.9395,3538.0,3537.9,0.1416]